[Event "Titled Tuesday Blitz August 23 Late 2022"]
[White "Ibrahimli, Murad"]
[Black "Bok, Benjamin"]
[WhiteFideId "13410229"]
[BlackFideId "1017063"]
[WhiteElo "2109"]
[BlackElo "2658"]
[Result "0-1"]
[Round "05"]
[TimeControl "180+1"]
[Date "2022.08.23"]
[WhiteClock "0:00:02"]
[BlackClock "0:00:13"]

1. d4 {[%clk 0:03:00]}  Nf6 {[%clk 0:02:59]} 2. c4 {[%clk 0:02:56]}  e6 {[%clk 0:02:59]} 3. Nf3 {[%clk 0:02:55]}  d5 {[%clk 0:02:59]} 4. g3 {[%clk 0:02:55]}  Bb4+ {[%clk 0:02:59]} 5. Bd2 {[%clk 0:02:53]}  Be7 {[%clk 0:02:59]} 6. Bg2 {[%clk 0:02:53]}  O-O {[%clk 0:03:00]} 7. O-O {[%clk 0:02:53]}  Nbd7 {[%clk 0:03:00]} 8. Bc3 {[%clk 0:02:53]}  b6 {[%clk 0:02:44]} 9. Nbd2 {[%clk 0:02:49]}  Bb7 {[%clk 0:02:44]} 10. cxd5 {[%clk 0:02:47]}  Nxd5 {[%clk 0:02:42]} 11. e4 {[%clk 0:02:46]}  Nxc3 {[%clk 0:02:41]} 12. bxc3 {[%clk 0:02:47]}  c5 {[%clk 0:02:41]} 13. Qa4 {[%clk 0:02:27]}  a6 {[%clk 0:02:40]} 14. Rad1 {[%clk 0:02:19]}  b5 {[%clk 0:02:38]} 15. Qb3 {[%clk 0:02:20]}  cxd4 {[%clk 0:02:38]} 16. cxd4 {[%clk 0:02:20]}  Nb6 {[%clk 0:02:38]} 17. Rfe1 {[%clk 0:02:07]}  Rc8 {[%clk 0:02:36]} 18. h4 {[%clk 0:02:03]}  Qd6 {[%clk 0:02:34]} 19. Re3 {[%clk 0:01:36]}  Na4 {[%clk 0:02:14]} 20. Nb1 {[%clk 0:01:12]}  Qb4 {[%clk 0:02:08]} 21. d5 {[%clk 0:01:08]}  exd5 {[%clk 0:01:58]} 22. exd5 {[%clk 0:01:09]}  Rfd8 {[%clk 0:01:24]} 23. Ne5 {[%clk 0:01:03]}  Qxb3 {[%clk 0:01:16]} 24. Rxb3 {[%clk 0:00:47]}  Bf6 {[%clk 0:01:09]} 25. f4 {[%clk 0:00:36]}  Rd6 {[%clk 0:01:05]} 26. Rd4 {[%clk 0:00:21]}  Rcd8 {[%clk 0:00:46]} 27. Rxa4 {[%clk 0:00:20]}  Bxd5 {[%clk 0:00:35]} 28. Bxd5 {[%clk 0:00:19]}  bxa4 {[%clk 0:00:36]} 29. Bxf7+ {[%clk 0:00:18]}  Kf8 {[%clk 0:00:36]} 30. Rb7 {[%clk 0:00:19]}  Bxe5 {[%clk 0:00:31]} 31. fxe5 {[%clk 0:00:20]}  R6d7 {[%clk 0:00:31]} 32. Rxd7 {[%clk 0:00:16]}  Rxd7 {[%clk 0:00:32]} 33. Bh5 {[%clk 0:00:16]}  Rc7 {[%clk 0:00:21]} 34. Nd2 {[%clk 0:00:07]}  Rc2 {[%clk 0:00:21]} 35. Nf3 {[%clk 0:00:04]}  Rxa2 {[%clk 0:00:21]} 36. Nd4 {[%clk 0:00:05]}  g6 {[%clk 0:00:18]} 37. Bf3 {[%clk 0:00:03]}  Ra1+ {[%clk 0:00:13]} 38. Kf2 {[%clk 0:00:02]}  a3 {[%clk 0:00:13]} 39. Bd5 {[%clk 0:00:02]}  a2 {[%clk 0:00:13]} 0-1


[Site "https://www.chess.com"]

[Event "Titled Tuesday Blitz August 23 Late 2022"]
[White "Leiva, Gianmarco"]
[Black "Wirig, Anthony"]
[WhiteFideId "3804399"]
[BlackFideId "615013"]
[WhiteElo "2323"]
[BlackElo "2474"]
[Result "1/2-1/2"]
[Round "05"]
[TimeControl "180+1"]
[Date "2022.08.23"]
[WhiteClock "0:00:05"]
[BlackClock "0:00:07"]

1. e4 {[%clk 0:03:00]}  c5 {[%clk 0:02:59]} 2. Nf3 {[%clk 0:02:59]}  e6 {[%clk 0:02:59]} 3. c3 {[%clk 0:02:59]}  Nf6 {[%clk 0:02:59]} 4. Bd3 {[%clk 0:02:58]}  Nc6 {[%clk 0:02:53]} 5. Bc2 {[%clk 0:02:57]}  d5 {[%clk 0:02:48]} 6. e5 {[%clk 0:02:57]}  Nd7 {[%clk 0:02:47]} 7. d4 {[%clk 0:02:57]}  Be7 {[%clk 0:02:47]} 8. O-O {[%clk 0:02:57]}  g5 {[%clk 0:02:46]} 9. dxc5 {[%clk 0:02:46]}  Nxc5 {[%clk 0:02:32]} 10. Re1 {[%clk 0:02:22]}  Bd7 {[%clk 0:02:26]} 11. Nbd2 {[%clk 0:02:19]}  Qc7 {[%clk 0:02:21]} 12. Qe2 {[%clk 0:02:15]}  h5 {[%clk 0:02:05]} 13. Nd4 {[%clk 0:02:01]}  Nxd4 {[%clk 0:01:56]} 14. cxd4 {[%clk 0:02:01]}  Na4 {[%clk 0:01:54]} 15. Bd3 {[%clk 0:01:51]}  O-O-O {[%clk 0:01:48]} 16. Nf3 {[%clk 0:01:42]}  Rdg8 {[%clk 0:01:35]} 17. b3 {[%clk 0:00:54]}  Nc3 {[%clk 0:01:22]} 18. Qc2 {[%clk 0:00:53]}  g4 {[%clk 0:00:59]} 19. Nd2 {[%clk 0:00:53]}  Bb5 {[%clk 0:00:57]} 20. Bb2 {[%clk 0:00:48]}  Ne2+ {[%clk 0:00:56]} 21. Kh1 {[%clk 0:00:27]}  Qxc2 {[%clk 0:00:54]} 22. Bxc2 {[%clk 0:00:28]}  Kb8 {[%clk 0:00:40]} 23. Nf1 {[%clk 0:00:15]}  Rc8 {[%clk 0:00:28]} 24. Ne3 {[%clk 0:00:15]}  Bb4 {[%clk 0:00:21]} 25. Red1 {[%clk 0:00:10]}  Bc3 {[%clk 0:00:18]} 26. Rab1 {[%clk 0:00:04]}  Bxb2 {[%clk 0:00:15]} 27. Rxb2 {[%clk 0:00:05]}  Nc3 {[%clk 0:00:16]} 28. Rd2 {[%clk 0:00:03]}  a5 {[%clk 0:00:16]} 29. g3 {[%clk 0:00:02]}  Be2 {[%clk 0:00:14]} 30. Kg2 {[%clk 0:00:01]}  Bf3+ {[%clk 0:00:14]} 31. Kg1 {[%clk 0:00:02]}  h4 {[%clk 0:00:13]} 32. Bd3 {[%clk 0:00:01]}  h3 {[%clk 0:00:10]} 33. Bf1 {[%clk 0:00:01]}  Rc7 {[%clk 0:00:10]} 34. Rdc2 {[%clk 0:00:02]}  Rhc8 {[%clk 0:00:11]} 35. Rd2 {[%clk 0:00:02]}  Ne4 {[%clk 0:00:10]} 36. Rdc2 {[%clk 0:00:02]}  Rc3 {[%clk 0:00:09]} 37. Rxc3 {[%clk 0:00:02]}  Rxc3 {[%clk 0:00:10]} 38. Rc2 {[%clk 0:00:02]}  Ka7 {[%clk 0:00:10]} 39. Rxc3 {[%clk 0:00:02]}  Nxc3 {[%clk 0:00:11]} 40. Bd3 {[%clk 0:00:03]}  Nxa2 {[%clk 0:00:11]} 41. Kf1 {[%clk 0:00:03]}  Nc1 {[%clk 0:00:11]} 42. Bc2 {[%clk 0:00:03]}  Ne2 {[%clk 0:00:11]} 43. Bd1 {[%clk 0:00:01]}  Nxd4 {[%clk 0:00:11]} 44. Bxf3 {[%clk 0:00:02]}  Nxf3 {[%clk 0:00:12]} 45. Nxg4 {[%clk 0:00:02]}  b5 {[%clk 0:00:12]} 46. Ke2 {[%clk 0:00:02]}  Nd4+ {[%clk 0:00:09]} 47. Kd3 {[%clk 0:00:03]}  Nxb3 {[%clk 0:00:10]} 48. Nh6 {[%clk 0:00:03]}  Nc5+ {[%clk 0:00:10]} 49. Kd4 {[%clk 0:00:04]}  Ne4 {[%clk 0:00:10]} 50. f4 {[%clk 0:00:02]}  Nxg3 {[%clk 0:00:10]} 51. Nxf7 {[%clk 0:00:03]}  Ne2+ {[%clk 0:00:08]} 52. Ke3 {[%clk 0:00:03]}  a4 {[%clk 0:00:08]} 53. f5 {[%clk 0:00:03]}  a3 {[%clk 0:00:09]} 54. fxe6 {[%clk 0:00:03]}  a2 {[%clk 0:00:09]} 55. e7 {[%clk 0:00:04]}  a1=Q {[%clk 0:00:10]} 56. e8=Q {[%clk 0:00:04]}  Nc3 {[%clk 0:00:08]} 57. Nd6 {[%clk 0:00:04]}  Qe1+ {[%clk 0:00:07]} 58. Kd4 {[%clk 0:00:04]}  Qd2+ {[%clk 0:00:08]} 59. Kc5 {[%clk 0:00:04]}  Ne4+ {[%clk 0:00:08]} 60. Nxe4 {[%clk 0:00:04]}  dxe4 {[%clk 0:00:09]} 61. Qe7+ {[%clk 0:00:03]}  Ka8 {[%clk 0:00:07]} 62. Qe8+ {[%clk 0:00:03]}  Ka7 {[%clk 0:00:07]} 63. Qe7+ {[%clk 0:00:04]}  Ka8 {[%clk 0:00:07]} 64. Qe8+ {[%clk 0:00:05]}  Ka7 {[%clk 0:00:07]} 1/2-1/2


[Site "https://www.chess.com"]

[Event "Titled Tuesday Blitz August 23 Late 2022"]
[White "Lenderman, Aleksandr"]
[Black "Ostrovskiy, Aleksandr"]
[WhiteFideId "2021285"]
[BlackFideId "2034239"]
[WhiteElo "2607"]
[BlackElo "2340"]
[Result "1-0"]
[Round "05"]
[TimeControl "180+1"]
[Date "2022.08.23"]
[WhiteClock "0:01:07"]
[BlackClock "0:00:02"]

1. e4 {[%clk 0:02:59]}  d5 {[%clk 0:02:58]} 2. d3 {[%clk 0:02:55]}  e5 {[%clk 0:02:56]} 3. Nf3 {[%clk 0:02:55]}  Nc6 {[%clk 0:02:55]} 4. Nbd2 {[%clk 0:02:55]}  Nf6 {[%clk 0:02:55]} 5. g3 {[%clk 0:02:52]}  Bc5 {[%clk 0:02:48]} 6. Bg2 {[%clk 0:02:51]}  O-O {[%clk 0:02:49]} 7. O-O {[%clk 0:02:51]}  Re8 {[%clk 0:02:49]} 8. c3 {[%clk 0:02:48]}  a5 {[%clk 0:02:49]} 9. a4 {[%clk 0:02:45]}  dxe4 {[%clk 0:02:47]} 10. dxe4 {[%clk 0:02:45]}  b6 {[%clk 0:02:47]} 11. h3 {[%clk 0:02:44]}  Ba6 {[%clk 0:02:43]} 12. Re1 {[%clk 0:02:44]}  Qe7 {[%clk 0:02:43]} 13. Nb3 {[%clk 0:02:40]}  Rad8 {[%clk 0:02:41]} 14. Bd2 {[%clk 0:02:40]}  Nd7 {[%clk 0:02:32]} 15. Qc2 {[%clk 0:02:34]}  f6 {[%clk 0:02:21]} 16. Rad1 {[%clk 0:02:26]}  Bc4 {[%clk 0:02:10]} 17. Nc1 {[%clk 0:02:21]}  Qf7 {[%clk 0:02:06]} 18. b3 {[%clk 0:02:19]}  Ba6 {[%clk 0:02:06]} 19. Bf1 {[%clk 0:02:19]}  Bxf1 {[%clk 0:02:05]} 20. Kxf1 {[%clk 0:02:19]}  Qh5 {[%clk 0:01:59]} 21. Kg2 {[%clk 0:02:18]}  Nf8 {[%clk 0:02:00]} 22. Nd3 {[%clk 0:02:14]}  Be7 {[%clk 0:01:54]} 23. Be3 {[%clk 0:02:11]}  Ne6 {[%clk 0:01:54]} 24. Nb2 {[%clk 0:02:05]}  Bc5 {[%clk 0:01:45]} 25. Nc4 {[%clk 0:02:05]}  Qg6 {[%clk 0:01:16]} 26. Nh4 {[%clk 0:02:02]}  Qh5 {[%clk 0:01:09]} 27. Bxc5 {[%clk 0:01:58]}  Nxc5 {[%clk 0:01:10]} 28. Nf5 {[%clk 0:01:56]}  Rxd1 {[%clk 0:01:03]} 29. Rxd1 {[%clk 0:01:54]}  Ne7 {[%clk 0:00:49]} 30. Nxe7+ {[%clk 0:01:50]}  Rxe7 {[%clk 0:00:50]} 31. Ne3 {[%clk 0:01:40]}  Qe8 {[%clk 0:00:47]} 32. b4 {[%clk 0:01:31]}  axb4 {[%clk 0:00:40]} 33. cxb4 {[%clk 0:01:31]}  Ne6 {[%clk 0:00:36]} 34. Nd5 {[%clk 0:01:30]}  Rd7 {[%clk 0:00:32]} 35. Qc6 {[%clk 0:01:29]}  Nd4 {[%clk 0:00:29]} 36. Qc4 {[%clk 0:01:24]}  Qf7 {[%clk 0:00:24]} 37. Nxb6 {[%clk 0:01:18]}  Rd8 {[%clk 0:00:05]} 38. Nd5 {[%clk 0:01:18]}  c6 {[%clk 0:00:02]} 39. Ne3 {[%clk 0:01:18]}  Qxc4 {[%clk 0:00:01]} 40. Nxc4 {[%clk 0:01:18]}  Ra8 {[%clk 0:00:01]} 41. a5 {[%clk 0:01:18]}  Kf7 {[%clk 0:00:02]} 42. Ra1 {[%clk 0:01:13]}  Ke7 {[%clk 0:00:02]} 43. a6 {[%clk 0:01:10]}  Nb5 {[%clk 0:00:02]} 44. Nb6 {[%clk 0:01:08]}  Rb8 {[%clk 0:00:03]} 45. a7 {[%clk 0:01:07]}  Rxb6 {[%clk 0:00:02]} 46. a8=Q {[%clk 0:01:07]} 1-0


[Site "https://www.chess.com"]

[Event "Titled Tuesday Blitz August 23 Late 2022"]
[White "Melkumyan, Hrant"]
[Black "Hnydiuk, Aleksander"]
[WhiteFideId "13302485"]
[BlackFideId "1109057"]
[WhiteElo "2604"]
[BlackElo "2374"]
[Result "1-0"]
[Round "05"]
[TimeControl "180+1"]
[Date "2022.08.23"]
[WhiteClock "0:00:07"]
[BlackClock "0:00:30"]

1. c4 {[%clk 0:03:00]}  Nf6 {[%clk 0:02:59]} 2. Nf3 {[%clk 0:02:59]}  g6 {[%clk 0:02:59]} 3. Nc3 {[%clk 0:02:59]}  Bg7 {[%clk 0:03:00]} 4. e4 {[%clk 0:02:59]}  O-O {[%clk 0:02:59]} 5. d4 {[%clk 0:03:00]}  d6 {[%clk 0:02:58]} 6. Be2 {[%clk 0:03:00]}  e5 {[%clk 0:02:58]} 7. O-O {[%clk 0:03:01]}  Bg4 {[%clk 0:02:58]} 8. dxe5 {[%clk 0:02:57]}  Bxf3 {[%clk 0:02:56]} 9. exf6 {[%clk 0:02:55]}  Bxe2 {[%clk 0:02:53]} 10. Qxe2 {[%clk 0:02:55]}  Bxf6 {[%clk 0:02:53]} 11. Nd5 {[%clk 0:02:54]}  Bg7 {[%clk 0:02:51]} 12. Be3 {[%clk 0:02:53]}  c6 {[%clk 0:02:51]} 13. Nf4 {[%clk 0:02:54]}  Qe7 {[%clk 0:02:45]} 14. f3 {[%clk 0:02:52]}  Nd7 {[%clk 0:02:42]} 15. Rad1 {[%clk 0:02:51]}  Nc5 {[%clk 0:02:38]} 16. b4 {[%clk 0:02:40]}  Na4 {[%clk 0:02:33]} 17. Qc2 {[%clk 0:02:39]}  Nc3 {[%clk 0:01:50]} 18. Rd3 {[%clk 0:02:35]}  Qe5 {[%clk 0:01:48]} 19. g3 {[%clk 0:02:29]}  a5 {[%clk 0:01:41]} 20. b5 {[%clk 0:02:07]}  cxb5 {[%clk 0:01:38]} 21. cxb5 {[%clk 0:02:07]}  Rac8 {[%clk 0:01:38]} 22. Bd4 {[%clk 0:01:50]}  Nxb5 {[%clk 0:01:22]} 23. Bxe5 {[%clk 0:01:40]}  Rxc2 {[%clk 0:01:22]} 24. Bxg7 {[%clk 0:01:40]}  Kxg7 {[%clk 0:01:23]} 25. Rb1 {[%clk 0:01:35]}  Nc3 {[%clk 0:01:19]} 26. Rxb7 {[%clk 0:01:34]}  Ne2+ {[%clk 0:01:11]} 27. Nxe2 {[%clk 0:01:24]}  Rxe2 {[%clk 0:01:12]} 28. Rc3 {[%clk 0:00:23]}  Rxa2 {[%clk 0:01:11]} 29. Rbb3 {[%clk 0:00:20]}  a4 {[%clk 0:01:08]} 30. Ra3 {[%clk 0:00:20]}  Rxa3 {[%clk 0:01:08]} 31. Rxa3 {[%clk 0:00:21]}  Ra8 {[%clk 0:01:09]} 32. Kf2 {[%clk 0:00:22]}  Kf6 {[%clk 0:01:09]} 33. Ke3 {[%clk 0:00:22]}  Ke5 {[%clk 0:01:09]} 34. f4+ {[%clk 0:00:22]}  Ke6 {[%clk 0:01:09]} 35. g4 {[%clk 0:00:20]}  f5 {[%clk 0:01:07]} 36. exf5+ {[%clk 0:00:20]}  gxf5 {[%clk 0:01:08]} 37. g5 {[%clk 0:00:21]}  Kd5 {[%clk 0:01:05]} 38. Kd3 {[%clk 0:00:20]}  Kc5 {[%clk 0:01:05]} 39. Kc2 {[%clk 0:00:18]}  Kb4 {[%clk 0:01:00]} 40. Rd3 {[%clk 0:00:17]}  a3 {[%clk 0:00:57]} 41. Kb1 {[%clk 0:00:18]}  a2+ {[%clk 0:00:57]} 42. Ka1 {[%clk 0:00:18]}  Kc5 {[%clk 0:00:56]} 43. h4 {[%clk 0:00:13]}  d5 {[%clk 0:00:55]} 44. h5 {[%clk 0:00:13]}  d4 {[%clk 0:00:56]} 45. Rd2 {[%clk 0:00:06]}  Kc4 {[%clk 0:00:52]} 46. Rc2+ {[%clk 0:00:06]}  Kb3 {[%clk 0:00:48]} 47. Rc7 {[%clk 0:00:06]}  d3 {[%clk 0:00:46]} 48. Rb7+ {[%clk 0:00:06]}  Kc2 {[%clk 0:00:45]} 49. Rxh7 {[%clk 0:00:07]}  d2 {[%clk 0:00:45]} 50. Rc7+ {[%clk 0:00:07]}  Kd3 {[%clk 0:00:46]} 51. Rd7+ {[%clk 0:00:07]}  Ke2 {[%clk 0:00:46]} 52. h6 {[%clk 0:00:05]}  d1=Q+ {[%clk 0:00:34]} 53. Rxd1 {[%clk 0:00:04]}  Kxd1 {[%clk 0:00:34]} 54. h7 {[%clk 0:00:05]}  Kc2 {[%clk 0:00:34]} 55. g6 {[%clk 0:00:06]}  Kb3 {[%clk 0:00:33]} 56. g7 {[%clk 0:00:06]}  Rc8 {[%clk 0:00:30]} 57. g8=Q+ {[%clk 0:00:07]} 1-0


[Site "https://www.chess.com"]

[Event "Titled Tuesday Blitz August 23 Late 2022"]
[White "Nakamura, Hikaru"]
[Black "Hansen, Eric"]
[WhiteFideId "2016192"]
[BlackFideId "2606771"]
[WhiteElo "2850"]
[BlackElo "2568"]
[Result "1-0"]
[Round "05"]
[TimeControl "180+1"]
[Date "2022.08.23"]
[WhiteClock "0:00:54"]
[BlackClock "0:00:14"]

1. Nf3 {[%clk 0:03:00]}  d5 {[%clk 0:02:59]} 2. e3 {[%clk 0:03:00]}  Nd7 {[%clk 0:02:59]} 3. c4 {[%clk 0:02:59]}  e6 {[%clk 0:03:00]} 4. b3 {[%clk 0:02:57]}  Ngf6 {[%clk 0:03:00]} 5. Bb2 {[%clk 0:02:57]}  a6 {[%clk 0:03:01]} 6. g3 {[%clk 0:02:53]}  Nc5 {[%clk 0:02:47]} 7. Qc2 {[%clk 0:02:39]}  Be7 {[%clk 0:02:37]} 8. cxd5 {[%clk 0:02:31]}  Qxd5 {[%clk 0:02:11]} 9. Be2 {[%clk 0:02:30]}  b5 {[%clk 0:01:57]} 10. Nc3 {[%clk 0:02:28]}  Qd8 {[%clk 0:01:31]} 11. d4 {[%clk 0:02:28]}  Ncd7 {[%clk 0:01:31]} 12. O-O {[%clk 0:02:19]}  Bb7 {[%clk 0:01:30]} 13. Rfd1 {[%clk 0:02:19]}  O-O {[%clk 0:01:23]} 14. Ne5 {[%clk 0:02:16]}  Qb8 {[%clk 0:01:19]} 15. a4 {[%clk 0:01:56]}  b4 {[%clk 0:01:07]} 16. Nxd7 {[%clk 0:01:56]}  Nxd7 {[%clk 0:01:07]} 17. Ne4 {[%clk 0:01:56]}  Rc8 {[%clk 0:01:07]} 18. Nc5 {[%clk 0:01:49]}  Nxc5 {[%clk 0:01:07]} 19. dxc5 {[%clk 0:01:49]}  Bc6 {[%clk 0:01:07]} 20. Rd4 {[%clk 0:01:42]}  Bf6 {[%clk 0:00:40]} 21. Rg4 {[%clk 0:01:41]}  Bxb2 {[%clk 0:00:39]} 22. Qxb2 {[%clk 0:01:41]}  g6 {[%clk 0:00:39]} 23. h4 {[%clk 0:01:30]}  Rd8 {[%clk 0:00:39]} 24. h5 {[%clk 0:01:29]}  Rd5 {[%clk 0:00:39]} 25. hxg6 {[%clk 0:01:23]}  fxg6 {[%clk 0:00:27]} 26. Bc4 {[%clk 0:01:18]}  Qf8 {[%clk 0:00:23]} 27. Bxd5 {[%clk 0:01:14]}  Bxd5 {[%clk 0:00:23]} 28. e4 {[%clk 0:01:14]}  Bc6 {[%clk 0:00:22]} 29. Rf4 {[%clk 0:01:13]}  Qe7 {[%clk 0:00:17]} 30. Qe5 {[%clk 0:01:09]}  a5 {[%clk 0:00:17]} 31. Rd1 {[%clk 0:01:07]}  Re8 {[%clk 0:00:14]} 32. Rd3 {[%clk 0:01:02]}  Qg7 {[%clk 0:00:14]} 33. Rf6 {[%clk 0:00:58]}  Bxe4 {[%clk 0:00:14]} 34. Qxe6+ {[%clk 0:00:54]} 1-0


[Site "https://www.chess.com"]

[Event "Titled Tuesday Blitz August 23 Late 2022"]
[White "Naroditsky, Daniel"]
[Black "Seo, Jung Min"]
[WhiteFideId "2026961"]
[BlackFideId "1734687"]
[WhiteElo "2628"]
[BlackElo "2414"]
[Result "1-0"]
[Round "05"]
[TimeControl "180+1"]
[Date "2022.08.23"]
[WhiteClock "0:01:36"]
[BlackClock "0:01:43"]

1. e4 {[%clk 0:03:00]}  c5 {[%clk 0:02:59]} 2. Nf3 {[%clk 0:03:01]}  d6 {[%clk 0:02:59]} 3. Bb5+ {[%clk 0:03:01]}  Nd7 {[%clk 0:02:56]} 4. O-O {[%clk 0:03:02]}  Nf6 {[%clk 0:02:55]} 5. Re1 {[%clk 0:03:00]}  a6 {[%clk 0:02:55]} 6. Bf1 {[%clk 0:03:00]}  e6 {[%clk 0:02:55]} 7. c3 {[%clk 0:03:00]}  b5 {[%clk 0:02:52]} 8. d4 {[%clk 0:03:00]}  Bb7 {[%clk 0:02:51]} 9. Bd3 {[%clk 0:02:52]}  Be7 {[%clk 0:02:50]} 10. Nbd2 {[%clk 0:02:52]}  O-O {[%clk 0:02:49]} 11. Nf1 {[%clk 0:02:53]}  e5 {[%clk 0:02:48]} 12. Ng3 {[%clk 0:02:52]}  Re8 {[%clk 0:02:46]} 13. a4 {[%clk 0:02:49]}  Qb6 {[%clk 0:02:45]} 14. d5 {[%clk 0:02:43]}  c4 {[%clk 0:02:44]} 15. Bc2 {[%clk 0:02:44]}  Nc5 {[%clk 0:02:44]} 16. Nf5 {[%clk 0:02:41]}  Bf8 {[%clk 0:02:43]} 17. Bg5 {[%clk 0:02:42]}  Nfd7 {[%clk 0:02:43]} 18. a5 {[%clk 0:02:40]}  Qc7 {[%clk 0:02:43]} 19. Qd2 {[%clk 0:02:40]}  Bc8 {[%clk 0:02:41]} 20. Re3 {[%clk 0:02:36]}  Nb7 {[%clk 0:02:41]} 21. N3h4 {[%clk 0:02:22]}  Ndc5 {[%clk 0:02:40]} 22. Rg3 {[%clk 0:02:17]}  Kh8 {[%clk 0:02:38]} 23. Nh6 {[%clk 0:02:04]}  Nb3 {[%clk 0:02:03]} 24. Bxb3 {[%clk 0:01:58]}  cxb3 {[%clk 0:02:04]} 25. Bf6 {[%clk 0:01:58]}  Nc5 {[%clk 0:01:43]} 26. Qg5 {[%clk 0:01:36]} 1-0


[Site "https://www.chess.com"]

[Event "Titled Tuesday Blitz August 23 Late 2022"]
[White "Noboa Silva, Kevin"]
[Black "Pakleza, Zbigniew"]
[WhiteFideId "3618471"]
[BlackFideId "1119290"]
[WhiteElo "2172"]
[BlackElo "2411"]
[Result "0-1"]
[Round "05"]
[TimeControl "180+1"]
[Date "2022.08.23"]
[WhiteClock "0:00:01"]
[BlackClock "0:00:09"]

1. d4 {[%clk 0:03:00]}  d6 {[%clk 0:02:59]} 2. e4 {[%clk 0:02:59]}  Nf6 {[%clk 0:02:59]} 3. Bd3 {[%clk 0:03:00]}  e5 {[%clk 0:02:59]} 4. c3 {[%clk 0:03:00]}  d5 {[%clk 0:02:59]} 5. dxe5 {[%clk 0:02:56]}  dxe4 {[%clk 0:03:00]} 6. Be2 {[%clk 0:02:55]}  Qxd1+ {[%clk 0:02:57]} 7. Bxd1 {[%clk 0:02:55]}  Ng4 {[%clk 0:02:53]} 8. Bc2 {[%clk 0:02:48]}  Bf5 {[%clk 0:02:25]} 9. Ne2 {[%clk 0:02:46]}  Nxe5 {[%clk 0:02:21]} 10. Ng3 {[%clk 0:02:45]}  Bg6 {[%clk 0:02:21]} 11. Nxe4 {[%clk 0:02:38]}  Nbc6 {[%clk 0:02:00]} 12. O-O {[%clk 0:02:38]}  O-O-O {[%clk 0:01:25]} 13. Be3 {[%clk 0:02:18]}  Nc4 {[%clk 0:01:15]} 14. Bc1 {[%clk 0:02:11]}  Re8 {[%clk 0:00:46]} 15. f3 {[%clk 0:02:01]}  f5 {[%clk 0:00:46]} 16. Ng3 {[%clk 0:01:56]}  Bc5+ {[%clk 0:00:46]} 17. Kh1 {[%clk 0:01:54]}  f4 {[%clk 0:00:34]} 18. Ne4 {[%clk 0:01:32]}  Be3 {[%clk 0:00:23]} 19. Bb3 {[%clk 0:01:24]}  N6e5 {[%clk 0:00:19]} 20. Na3 {[%clk 0:01:21]}  Nxa3 {[%clk 0:00:13]} 21. bxa3 {[%clk 0:01:21]}  Bxc1 {[%clk 0:00:10]} 22. Raxc1 {[%clk 0:01:20]}  Rd8 {[%clk 0:00:09]} 23. Nc5 {[%clk 0:01:13]}  Nd3 {[%clk 0:00:05]} 24. Nxd3 {[%clk 0:00:40]}  Rxd3 {[%clk 0:00:06]} 25. Bc2 {[%clk 0:00:40]}  Rd2 {[%clk 0:00:06]} 26. Bxg6 {[%clk 0:00:33]}  hxg6 {[%clk 0:00:07]} 27. Rfe1 {[%clk 0:00:32]}  Rhd8 {[%clk 0:00:06]} 28. h3 {[%clk 0:00:29]}  Rxa2 {[%clk 0:00:06]} 29. Re6 {[%clk 0:00:26]}  Rd6 {[%clk 0:00:05]} 30. Re7 {[%clk 0:00:25]}  Rxa3 {[%clk 0:00:02]} 31. Rxg7 {[%clk 0:00:24]}  a5 {[%clk 0:00:03]} 32. Re1 {[%clk 0:00:21]}  b5 {[%clk 0:00:03]} 33. Re5 {[%clk 0:00:18]}  b4 {[%clk 0:00:02]} 34. cxb4 {[%clk 0:00:16]}  axb4 {[%clk 0:00:03]} 35. Rb5 {[%clk 0:00:16]}  Rb6 {[%clk 0:00:03]} 36. Rc5 {[%clk 0:00:15]}  Ra7 {[%clk 0:00:03]} 37. Rg8+ {[%clk 0:00:08]}  Kb7 {[%clk 0:00:03]} 38. Rg7 {[%clk 0:00:07]}  Kb8 {[%clk 0:00:03]} 39. Rg8+ {[%clk 0:00:07]}  Kb7 {[%clk 0:00:04]} 40. Rg7 {[%clk 0:00:08]}  Ka6 {[%clk 0:00:04]} 41. Rgxc7 {[%clk 0:00:07]}  Rxc7 {[%clk 0:00:05]} 42. Rxc7 {[%clk 0:00:08]}  b3 {[%clk 0:00:06]} 43. Rc1 {[%clk 0:00:08]}  Kb5 {[%clk 0:00:06]} 44. Kh2 {[%clk 0:00:08]}  Kb4 {[%clk 0:00:06]} 45. g3 {[%clk 0:00:08]}  fxg3+ {[%clk 0:00:06]} 46. Kxg3 {[%clk 0:00:09]}  b2 {[%clk 0:00:07]} 47. Rb1 {[%clk 0:00:09]}  Kc3 {[%clk 0:00:07]} 48. Kg4 {[%clk 0:00:09]}  Rb5 {[%clk 0:00:07]} 49. f4 {[%clk 0:00:09]}  Kc2 {[%clk 0:00:08]} 50. Re1 {[%clk 0:00:07]}  b1=Q {[%clk 0:00:08]} 51. Rxb1 {[%clk 0:00:06]}  Kxb1 {[%clk 0:00:09]} 52. h4 {[%clk 0:00:05]}  Kc2 {[%clk 0:00:09]} 53. f5 {[%clk 0:00:01]}  Rxf5 {[%clk 0:00:09]} 0-1


[Site "https://www.chess.com"]